fUSD/lending_fUSD_20250511
["ID","MTS","AMOUNT","RATE_DAILY","PERIOD"]
[360697015,1746934251127,-400.0,0.00019899,2]
[360697016,1746934251136,-245.92988032,0.00019899,2]
[360697017,1746934251148,-400.0,0.00019899,2]
[360697018,1746934251158,-400.0,0.00019899,2]
[360697019,1746934251167,-400.0,0.00019899,2]
[360697020,1746934251176,-559.15,0.00019899,2]
[360697021,1746934251185,-400.0,0.00019899,2]
[360697022,1746934251194,-400.0,0.00019899,2]
[360697023,1746934251203,-329.86,0.00019899,2]
[360697024,1746934251212,-400.0,0.00019899,2]
[360697025,1746934251221,-400.0,0.00019899,2]
[360697026,1746934251230,-230.11667391,0.00019899,2]
[360697027,1746934251239,-400.0,0.00019899,2]
[360697028,1746934251249,-400.0,0.00019899,2]
[360697029,1746934251258,-400.0,0.00019899,2]
[360697030,1746934251267,-487.95,0.00019899,2]
[360697031,1746934251276,-472.46781075,0.00019899,2]
[360697032,1746934251285,-227.9,0.00019899,2]
[360697033,1746934251294,-412.35226106,0.00019899,2]
[360697034,1746934251304,-172.73067412,0.00019899,2]
[360697035,1746934251313,-223.84,0.00019899,2]
[360697036,1746934251322,-400.0,0.00019899,2]
[360697037,1746934251330,-236.17984031,0.00019899,2]
[360697038,1746934251339,-228.39085397,0.00019899,2]
[360697039,1746934251348,-361.54245816,0.00019899,2]
[360697040,1746934251358,-314.83,0.00019899,2]
[360697041,1746934251367,-400.0,0.00019899,2]
[360697042,1746934251376,-404.22844729,0.00019899,2]
[360697043,1746934251386,-223.15056515,0.00019899,2]
[360697044,1746934251395,-403.62532257,0.00019899,2]
[360697045,1746934251405,-400.0,0.00019899,2]
[360697046,1746934251417,-416.57694646,0.00019899,2]
[360697047,1746934251428,-395.50766219,0.00019899,2]
[360697048,1746934251439,-309.0,0.00019899,2]
[360697049,1746934251449,-400.0,0.00019899,2]
[360697050,1746934251460,-400.0,0.00019899,2]
[360697051,1746934251469,-411.61,0.00019899,2]
[360697052,1746934251478,-400.0,0.00019899,2]
[360697053,1746934251487,-400.0,0.00019899,2]
[360697054,1746934251496,-400.0,0.00019899,2]
[360697055,1746934251505,-192.53,0.00019899,2]
[360697056,1746934251514,-464.47,0.00019899,2]
[360697057,1746934251524,-400.0,0.00019899,2]
[360697058,1746934251533,-400.0,0.00019899,2]
[360697059,1746934251542,-400.0,0.00019899,2]
[360697060,1746934251551,-400.0,0.00019899,2]
[360697061,1746934251560,-400.0,0.00019899,2]
[360697062,1746934251569,-400.0,0.00019899,2]
[360697063,1746934251578,-178.01,0.00019899,2]
[360697064,1746934251587,-400.0,0.00019899,2]
[360697065,1746934251596,-266.63,0.00019899,2]
[360697066,1746934251606,-528.98,0.00019899,2]
[360697067,1746934251615,-350.19,0.00019899,2]
[360697068,1746934251625,-169.0638162,0.00019899,2]
[360697069,1746934251634,-400.0,0.00019899,2]
[360697070,1746934251643,-437.60420379,0.00019899,2]
[360697071,1746934251653,-499.83513608,0.00019899,2]
[360697072,1746934251662,-400.0,0.00019899,2]
[360697073,1746934251671,-444.39014953,0.00019899,2]
[360697074,1746934251680,-400.0,0.00019899,2]
[360697075,1746934251689,-504.97,0.00019899,2]
[360697076,1746934251699,-500.0,0.00019899,2]
[360697077,1746934251708,-400.0,0.00019899,2]
[360697078,1746934251717,-524.83764877,0.00019899,2]
[360697079,1746934251727,-400.0,0.00019899,2]
[360697080,1746934251736,-400.0,0.00019899,2]
[360697081,1746934251745,-400.0,0.00019899,2]
[360697082,1746934251754,-428.62613942,0.00019899,2]
[360697083,1746934251763,-400.0,0.00019899,2]
[360697084,1746934251773,-400.0,0.00019899,2]
[360697085,1746934251782,-158.5612419,0.00019899,2]
[360697086,1746934251791,-420.26,0.00019899,2]
[360697087,1746934251800,-466.80261,0.00019899,2]
[360697088,1746934251809,-400.0,0.00019899,2]
[360697089,1746934251819,-400.0,0.00019899,2]
[360697090,1746934251829,-400.0,0.00019899,2]
[360697091,1746934251839,-400.0,0.00019899,2]
[360697092,1746934251849,-400.0,0.00019899,2]
[360697093,1746934251858,-400.0,0.00019899,2]
[360697094,1746934251867,-400.0,0.00019899,2]
[360697095,1746934251877,-402.4,0.00019899,2]
[360697096,1746934251887,-400.0,0.00019899,2]
[360697097,1746934251899,-400.0,0.00019899,2]
[360697098,1746934251907,-400.0,0.00019899,2]
[360697099,1746934251918,-400.0,0.00019899,2]
[360697100,1746934251928,-1623.63,0.00019899,2]
[360697101,1746934251938,-400.0,0.00019899,2]
[360697102,1746934251947,-400.0,0.00019899,2]
[360697103,1746934251958,-400.0,0.00019899,2]
[360697104,1746934251971,-400.0,0.00019899,2]
[360697105,1746934251981,-400.0,0.00019899,2]
[360697106,1746934251991,-355.96306038,0.00019899,2]
[360697107,1746934252003,-400.0,0.00019899,2]
[360697108,1746934252014,-400.0,0.00019899,2]
[360697109,1746934252023,-400.0,0.00019899,2]
[360697110,1746934252032,-400.0,0.00019899,2]
[360697111,1746934252045,-400.0,0.00019899,2]
[360697112,1746934252054,-400.0,0.00019899,2]
[360697113,1746934252063,-400.0,0.00019899,2]
[360697114,1746934252073,-1299.66,0.00019899,2]
[360697115,1746934252083,-400.0,0.00019899,2]
[360697116,1746934252092,-400.0,0.00019899,2]
[360697117,1746934252101,-400.0,0.00019899,2]
[360697118,1746934252110,-424.03,0.00019899,2]
[360697119,1746934252119,-13330.52,0.00019899,2]
[360697120,1746934252128,-1376.73,0.00019899,2]
[360697121,1746934252137,-400.0,0.00019899,2]
[360697122,1746934252146,-400.0,0.00019899,2]
[360697123,1746934252298,-400.0,0.00019899,2]
[360697124,1746934252308,-400.0,0.00019899,2]
[360697125,1746934252317,-400.0,0.00019899,2]
[360697126,1746934252326,-400.0,0.00019899,2]
[360697127,1746934252336,-400.0,0.00019899,2]
[360697128,1746934252346,-400.0,0.00019899,2]
[360697129,1746934252356,-150.0,0.00019899,2]
[360697130,1746934252366,-739.49,0.00019899,2]
[360697131,1746934252375,-400.0,0.00019899,2]
[360697132,1746934252384,-400.0,0.00019899,2]
[360697133,1746934252393,-931.88,0.00019899,2]
[360697134,1746934252403,-597.70502,0.00019899,2]
[360697135,1746934252412,-695.43,0.00019899,2]
[360697136,1746934252421,-322.31,0.00019899,2]
[360697137,1746934252431,-467.49,0.00019899,2]
[360697138,1746934252440,-400.0,0.00019899,2]
[360697139,1746934252449,-414.06,0.00019899,2]
[360697140,1746934252459,-400.0,0.00019899,2]
[360697141,1746934252469,-400.0,0.00019899,2]
[360697142,1746934252478,-3719.597547,0.00019899,2]
[360697143,1746934252488,-400.0,0.00019899,2]
[360697144,1746934252498,-539.946843,0.00019899,2]
[360697145,1746934252507,-1088.286402,0.00019899,2]
[360697146,1746934252516,-400.0,0.00019899,2]
[360697147,1746934252526,-539.946843,0.00019899,2]
[360697148,1746934252535,-447.78,0.00019899,2]
[360697149,1746934252545,-506.12,0.00019899,2]
[360697150,1746934252554,-3220.73260362,0.000199,2]
[360697151,1746934252563,-5800.0,0.000199,2]
[360697152,1746934252574,-154.2280362,0.000199,2]
[360697153,1746934252583,-731.87140292,0.000199,2]
[360697154,1746934252592,-15582.78694295,0.000199,2]
[360697155,1746934252602,-387.35639289,0.000199,2]
[360697156,1746934252612,-7548.38646177,0.000199,2]
[360697157,1746934252622,-4756.33736898,0.000199,3]
[360697158,1746934252632,-171.68209271,0.000199,2]
[360697159,1746934252641,-287.31770322,0.000199,2]
[360697160,1746934252650,-5128.32336662,0.000199,2]
[360697161,1746934252659,-5499.93897336,0.000199,2]
[360697162,1746934252668,-214.28082045,0.000199,2]
[360697163,1746934252677,-10263.50822535,0.000199,2]
[360697164,1746934253039,-400.0,0.00019579,2]
[360697165,1746934253049,-400.0,0.00019579,2]
[360697166,1746934253059,-467.94,0.0001958,2]
[360697167,1746934253069,-172.4627744,0.00019693,2]
[360697168,1746934253079,-215.33819189,0.000199,2]
[360697169,1746934253486,-461.29285508,0.00019573,2]
[360697170,1746934253496,-40.64155204,0.00019573,2]
[360697171,1746934346809,-200.0,0.00018646,2]
[360697172,1746934346840,-500.0,0.00018647,2]
[360697173,1746934346870,-500.0,0.00018647,2]
[360697174,1746934346900,-500.0,0.00018647,2]
[360697175,1746934346930,-500.0,0.00018647,2]
[360697176,1746934346959,-500.0,0.00018647,2]
[360697177,1746934346988,-500.0,0.00018647,2]
[360697178,1746934347021,-500.0,0.00018647,2]
[360697179,1746934347050,-500.0,0.00018647,2]
[360697180,1746934347081,-500.0,0.00018647,2]
[360697181,1746934347111,-500.0,0.00018647,2]
[360697182,1746934347141,-500.0,0.00018647,2]
[360697183,1746934347170,-500.0,0.00018647,2]
[360697184,1746934347200,-500.0,0.00018647,2]
[360697185,1746934347230,-500.0,0.00018647,2]
[360697186,1746934347260,-500.0,0.00018647,2]
[360697187,1746934347291,-500.0,0.00018647,2]
[360697188,1746934347321,-500.0,0.00018647,2]
[360697189,1746934347354,-500.0,0.00018647,2]
[360697190,1746934347387,-500.0,0.00018647,2]
[360697191,1746934347419,-500.0,0.00018647,2]
[360697192,1746934347453,-500.0,0.00018647,2]
[360697193,1746934347487,-500.0,0.00018647,2]
[360697194,1746934347522,-500.0,0.00018647,2]
[360697195,1746934347557,-500.0,0.00018647,2]
[360697196,1746934347587,-500.0,0.00018647,2]
[360697197,1746934347616,-500.0,0.00018647,2]
[360697198,1746934347645,-500.0,0.00018647,2]
[360697199,1746934347674,-500.0,0.00018647,2]
[360697200,1746934347702,-291.54497706,0.00018647,2]
[360697201,1746934347731,-500.0,0.00018647,2]
[360697202,1746934347759,-500.0,0.00018647,2]
[360697203,1746934347790,-500.0,0.00018647,2]
[360697204,1746934347820,-500.0,0.00018647,2]
[360697205,1746934347851,-500.0,0.00018647,2]
[360697206,1746934347881,-500.0,0.00018647,2]
[360697207,1746934347911,-500.0,0.00018647,2]
[360697208,1746934347941,-500.0,0.00018647,2]
[360697209,1746934347971,-500.0,0.00018647,2]
[360697210,1746934348004,-500.0,0.00018647,2]
[360697211,1746934348033,-500.0,0.00018647,2]
[360697212,1746934348062,-500.0,0.00018647,2]
[360697213,1746934348091,-500.0,0.00018647,2]
[360697214,1746934348121,-241.34546036,0.00018647,2]
[360697215,1746934348148,-500.0,0.00018647,2]
[360697216,1746934348178,-500.0,0.00018647,2]
[360697217,1746934348210,-500.0,0.00018647,2]
[360697218,1746934348241,-500.0,0.00018647,2]
[360697219,1746934348270,-500.0,0.00018647,2]
[360697220,1746934348299,-500.0,0.00018647,2]
[360697221,1746934348330,-500.0,0.00018647,2]
[360697222,1746934348361,-267.10956258,0.00018647,2]
[360697225,1746934407898,206.76,0.00013699,2]
[360697227,1746934598267,596.0,0.0003,120]
[360697229,1746934978206,1000.0,0.00030137,120]
[360697230,1746935231117,-155.0,0.00018293,2]
[360697231,1746935231139,-341.85,0.00018304,2]
[360697232,1746935231159,-341.85,0.00018308,2]
[360697233,1746935231181,-265.86744349,0.00018313,2]
[360697257,1746935431990,-150.0,0.00017854,2]
[360697258,1746935432000,-394.02,0.00018132,2]
[360697259,1746935432013,-249.671754,0.00018132,2]
[360697260,1746935432023,-203.33885163,0.00018245,2]
[360697261,1746935432033,-130.17487961,0.00018255,2]
[360697262,1746935432095,-73.16397202,0.00018255,2]
[360697263,1746935432105,-203.33885163,0.00018266,2]
[360697264,1746935432115,-250.0,0.00018267,2]
[360697265,1746935432126,-75.98255651,0.00018313,2]
[360697266,1746935432135,-341.85,0.00018318,2]
[360697267,1746935432145,-341.85,0.00018323,2]
[360697268,1746935432155,-341.85,0.00018328,2]
[360697269,1746935432165,-341.85,0.00018332,2]
[360697270,1746935432175,-341.85,0.00018337,2]
[360697271,1746935432184,-64.02082689,0.00018342,2]
[360697272,1746935432196,-277.82917311,0.00018342,2]
[360697273,1746935432205,-45.15542366,0.00018347,2]
[360697274,1746935432222,-296.69457634,0.00018347,2]
[360697275,1746935432231,-341.85,0.00018352,2]
[360697276,1746935432243,-341.85,0.00018357,2]
[360697277,1746935432253,-341.85,0.00018361,2]
[360697278,1746935432264,-341.85,0.00018366,2]
[360697279,1746935432274,-341.85,0.00018371,2]
[360697280,1746935432283,-341.85,0.00018376,2]
[360697281,1746935432294,-341.85,0.00018381,2]
[360697282,1746935432304,-341.85,0.00018386,2]
[360697283,1746935432313,-250.0,0.0001839,2]
[360697284,1746935432323,-1200.0,0.0001839,2]
[360697285,1746935432332,-300.0,0.0001839,2]
[360697286,1746935432342,-300.0,0.0001839,2]
[360697288,1746935432352,-341.85,0.0001839,2]
[360697290,1746935432363,-341.85,0.00018395,2]
[360697292,1746935432373,-157.72353152,0.00018408,2]
[360697294,1746935432386,-165.28,0.00018415,2]
[360697296,1746935432396,-1000.0,0.00018431,2]
[360697298,1746935432406,-913.22,0.0001845,2]
[360697300,1746935432416,-850.0,0.00018508,2]
[360697302,1746935432426,-958.93,0.00018508,2]
[360697304,1746935432436,-216.17,0.0001853,2]
[360697306,1746935432447,-200.0,0.00018909,2]
[360697308,1746935432458,-200.0,0.00018928,2]
[360697311,1746935432468,-15681.23616946,0.00019,2]
[360697313,1746935432478,-443.76647256,0.000191,2]
[360697315,1746935432487,-151.0,0.00019178,2]
[360697317,1746935432497,-164.9,0.00019182,2]
[360697318,1746935432506,-207.4,0.0001927,2]
[360697319,1746935432516,-320.83230521,0.00019278,2]
[360697320,1746935432526,-500.0,0.00019278,2]
[360697321,1746935432535,-500.0,0.00019278,2]
[360697322,1746935432545,-500.0,0.00019278,2]
[360697323,1746935432556,-431.3132206,0.00019278,2]
[360697324,1746935432566,-500.0,0.00019278,2]
[360697325,1746935432576,-500.0,0.00019278,2]
[360697326,1746935432586,-500.0,0.00019278,2]
[360697327,1746935432596,-500.0,0.00019278,2]
[360697328,1746935432606,-500.0,0.00019278,2]
[360697329,1746935432617,-500.0,0.00019278,2]
[360697330,1746935432627,-500.0,0.00019278,2]
[360697331,1746935432636,-500.0,0.00019278,2]
[360697332,1746935432646,-500.0,0.00019278,2]
[360697333,1746935432656,-500.0,0.00019278,2]
[360697334,1746935432666,-500.0,0.00019278,2]
[360697335,1746935432676,-500.0,0.00019278,2]
[360697336,1746935432686,-500.0,0.00019278,2]
[360697337,1746935432696,-171.34546036,0.00019278,2]
[360697338,1746935432707,-8304.5786,0.00019281,2]
[360697339,1746935432716,-1000.0,0.00019281,2]
[360697340,1746935432726,-1409.0802,0.00019281,2]
[360697341,1746935432737,-2850.66,0.00019339,2]
[360697342,1746935432747,-150.99,0.00019339,2]
[360697343,1746935432758,-7360.88,0.00019339,2]
[360697344,1746935432768,-3541.29,0.00019339,2]
[360697345,1746935432778,-894.39,0.00019339,2]
[360697346,1746935432788,-9999.99,0.00019339,2]
[360697347,1746935432798,-29532.55,0.00019339,2]
[360697348,1746935432807,-499.99,0.00019339,2]
[360697349,1746935432817,-500.0,0.00019373,2]
[360697350,1746935432827,-12537.13934041,0.00019378,2]
[360697351,1746935432837,-723.4456,0.00019379,2]
[360697352,1746935432848,-370.76331199,0.00019379,2]
[360697353,1746935432860,-499.31998801,0.00019379,2]
[360697354,1746935432870,-151.27236706,0.00019379,2]
[360697355,1746935432880,-12537.13934039,0.00019436,2]
[360697356,1746935432889,-151.0,0.00019461,2]
[360697357,1746935432899,-151.0,0.00019461,2]
[360697358,1746935432909,-171.82849738,0.00019463,2]
[360697359,1746935432925,-3356.46857376,0.00019463,2]
[360697360,1746935432935,-310.93,0.00019469,2]
[360697361,1746935432944,-383.69618079,0.00019471,2]
[360697362,1746935432955,-152.35103579,0.00019472,2]
[360697363,1746935432964,-479.11857813,0.00019472,5]
[360697364,1746935432974,-350.6741,0.00019472,2]
[360697365,1746935432984,-1443.71153153,0.00019473,2]
[360697366,1746935432996,-411.8444199,0.00019473,2]
[360697367,1746935433008,-1444.77030765,0.00019473,2]
[360697368,1746935433020,-8365.638373,0.00019473,2]
[360697369,1746935438751,-501.0,0.00018904,2]
[360697370,1746935438760,-2203.90853593,0.00019473,2]
[360697371,1746935438808,-19535.82523199,0.00019473,2]
[360697372,1746935438818,-50036.8012,0.00019473,2]
[360697373,1746935438827,-400.0,0.00019478,2]
[360697374,1746935438837,-493.35506787,0.00019478,2]
[360697375,1746935438847,-400.0,0.00019478,2]
[360697376,1746935438856,-400.0,0.00019478,2]
[360697377,1746935438865,-400.0,0.00019478,2]
[360697378,1746935438874,-400.0,0.00019478,2]
[360697379,1746935438883,-400.0,0.00019478,2]
[360697380,1746935438893,-422.11230313,0.00019478,2]
[360697381,1746935438902,-400.0,0.00019478,2]
[360697382,1746935438913,-400.0,0.00019478,2]
[360697383,1746935438923,-400.0,0.00019478,2]
[360697384,1746935438933,-400.0,0.00019478,2]
[360697385,1746935438942,-400.0,0.00019478,2]
[360697386,1746935438952,-400.0,0.00019478,2]
[360697387,1746935438961,-400.0,0.00019478,2]
[360697388,1746935438972,-400.0,0.00019478,2]
[360697389,1746935438981,-374.15985722,0.00019478,2]
[360697390,1746935438992,-400.0,0.00019478,2]
[360697391,1746935439002,-400.0,0.00019478,2]
[360697392,1746935439012,-400.0,0.00019478,2]
[360697393,1746935439022,-400.0,0.00019478,2]
[360697394,1746935439032,-509.29746024,0.00019478,2]
[360697395,1746935439042,-400.0,0.00019478,2]
[360697396,1746935439053,-400.0,0.00019478,2]
[360697397,1746935439063,-215.4102064,0.00019478,2]
[360697398,1746935439073,-400.0,0.00019478,2]
[360697399,1746935439083,-400.0,0.00019478,2]
[360697400,1746935439096,-400.0,0.00019478,2]
[360697401,1746935439107,-804.24525354,0.00019478,2]
[360697402,1746935439118,-400.0,0.00019478,2]
[360697403,1746935439128,-400.0,0.00019478,2]
[360697404,1746935439140,-400.0,0.00019478,2]
[360697405,1746935439149,-246.81760356,0.00019478,2]
[360697406,1746935439159,-400.0,0.00019478,2]
[360697407,1746935439170,-400.0,0.00019478,2]
[360697408,1746935439180,-400.0,0.00019478,2]
[360697409,1746935439189,-2754.7778,0.00019478,2]
[360697410,1746935439198,-2927.25040009,0.00019479,2]
[360697411,1746935439210,-790.44402529,0.00019479,2]
[360697412,1746935439225,-2392.05427462,0.00019479,2]
[360697413,1746935439234,-401.64094285,0.00019479,2]
[360697414,1746935439243,-400.0,0.00019479,2]
[360697415,1746935439252,-400.0,0.00019479,2]
[360697416,1746935439261,-400.0,0.00019479,2]
[360697417,1746935439271,-400.0,0.00019479,2]
[360697418,1746935439280,-400.0,0.00019479,2]
[360697419,1746935439289,-325.2279416,0.00019479,2]
[360697420,1746935439300,-74.7720584,0.00019479,2]
[360697421,1746935439309,-347.97794085,0.00019479,2]
[360697422,1746935439320,-52.02205915,0.00019479,2]
[360697424,1746935439329,-264.70794085,0.00019479,2]
[360697426,1746935439340,-146.49606256,0.00019479,2]
[360697428,1746935439349,-400.0,0.00019479,2]
[360697430,1746935439358,-400.0,0.00019479,2]
[360697432,1746935439367,-414.06,0.00019479,2]
[360697434,1746935439376,-400.0,0.00019479,2]
[360697435,1746935439390,-513.8539374,0.00019479,2]
[360697436,1746935439402,-10.44459854,0.00019479,2]
[360697437,1746935439411,-326.64392026,0.00019479,2]
[360697438,1746935439420,-161.42755495,0.00019479,2]
[360697439,1746935439430,-518.21,0.00019479,2]
[360697440,1746935439440,-400.0,0.00019479,2]
[360697441,1746935439449,-119.79392625,0.00019479,2]
[360697442,1746935439462,-280.20607375,0.00019479,2]
[360697443,1746935439471,-169.98053201,0.00019479,2]
[360697444,1746935439480,-28.55031024,0.00019479,2]
[360697445,1746935439492,-371.44968976,0.00019479,2]
[360697446,1746935439501,-188.35453678,0.00019479,2]
[360697447,1746935439511,-393.52720715,0.00019479,2]
[360697448,1746935439521,-427.06653652,0.00019479,2]
[360697449,1746935439531,-400.0,0.00019479,2]
[360697450,1746935439542,-530.26404852,0.00019479,2]
[360697451,1746935439552,-406.03965731,0.00019479,2]
[360697452,1746935439562,-261.97241009,0.00019479,2]
[360697453,1746935439571,-400.0,0.00019479,2]
[360697454,1746935439580,-400.0,0.00019479,2]
[360697455,1746935439590,-400.0,0.00019479,2]
[360697456,1746935439599,-400.0,0.00019479,2]
[360697457,1746935439609,-400.0,0.00019479,2]
[360697458,1746935439619,-400.0,0.00019479,2]
[360697459,1746935439628,-400.0,0.00019479,2]
[360697460,1746935439638,-400.0,0.00019479,2]
[360697461,1746935439647,-400.0,0.00019479,2]
[360697462,1746935439657,-400.0,0.00019479,2]
[360697463,1746935439666,-234.13999416,0.00019479,2]
[360697464,1746935439676,-154.415738,0.00019479,2]
[360697465,1746935439685,-400.0,0.00019479,2]
[360697466,1746935439695,-400.1604243,0.00019479,2]
[360697467,1746935439705,-400.0,0.00019479,2]
[360697468,1746935439714,-318.12869137,0.00019479,2]
[360697469,1746935439724,-400.0,0.00019479,2]
[360697470,1746935439734,-400.0,0.00019479,2]
[360697471,1746935439743,-155.23450164,0.00019479,2]
[360697472,1746935439754,-248.1920596,0.00019479,2]
[360697474,1746935439981,-151.8079404,0.00019479,2]
[360697475,1746935439991,-400.0,0.00019479,2]
[360697476,1746935440000,-400.0,0.00019479,2]
[360697477,1746935440012,-400.0,0.00019479,2]
[360697478,1746935440023,-400.0,0.00019479,2]
[360697479,1746935440032,-1514.31,0.00019479,2]
[360697480,1746935440042,-400.0,0.00019479,2]
[360697481,1746935440053,-400.0,0.00019479,2]
[360697482,1746935440063,-400.0,0.00019479,2]
[360697483,1746935440071,-178.09986033,0.00019479,2]
[360697484,1746935440082,-163.37577826,0.00019479,2]
[360697485,1746935440092,-400.0,0.00019479,2]
[360697486,1746935440102,-400.0,0.00019479,2]
[360697487,1746935440113,-400.0,0.00019479,2]
[360697488,1746935440123,-400.0,0.00019479,2]
[360697489,1746935440134,-300.80642121,0.00019479,2]
[360697490,1746935440148,-99.19357879,0.00019479,2]
[360697491,1746935440158,-400.0,0.00019479,2]
[360697492,1746935440168,-400.0,0.00019479,2]
[360697493,1746935440178,-114.68965082,0.00019479,2]
[360697494,1746935440288,-285.31034918,0.00019479,2]
[360697495,1746935440297,-3.42721745,0.00019479,2]
[360697496,1746935440398,-174.04687817,0.00019478,2]
[360697497,1746935440409,-396.57278255,0.00019479,2]
[360697498,1746935440418,-444.6378871,0.00019479,2]
[360697499,1746935440429,-400.7194625,0.00019479,2]
[360697500,1746935440438,-400.0,0.00019479,2]
[360697501,1746935440448,-400.0,0.00019479,2]
[360697502,1746935440457,-400.0,0.00019479,2]
[360697503,1746935440467,-405.57419504,0.00019479,2]
[360697504,1746935440476,-478.91995379,0.00019479,2]
[360697505,1746935440486,-400.0,0.00019479,2]
[360697506,1746935440495,-400.0,0.00019479,2]
[360697507,1746935440504,-400.0,0.00019479,2]
[360697508,1746935440514,-569.19,0.00019479,2]
[360697509,1746935440524,-400.0,0.00019479,2]
[360697510,1746935440534,-400.0,0.00019479,2]
[360697511,1746935440543,-400.0,0.00019479,2]
[360697512,1746935440553,-400.0,0.00019479,2]
[360697513,1746935440563,-401.19506975,0.00019479,2]
[360697514,1746935440572,-400.0,0.00019479,2]
[360697515,1746935440582,-400.0,0.00019479,2]
[360697516,1746935440591,-400.0,0.00019479,2]
[360697517,1746935440601,-520.86235059,0.00019479,2]
[360697518,1746935440611,-400.0,0.00019479,2]
[360697519,1746935440620,-400.0,0.00019479,2]
[360697520,1746935440630,-400.0,0.00019479,2]
[360697521,1746935440639,-400.0,0.00019479,2]
[360697522,1746935440648,-400.0,0.00019479,2]
[360697523,1746935440659,-400.0,0.00019479,2]
[360697524,1746935440668,-400.0,0.00019479,2]
[360697525,1746935440678,-400.0,0.00019479,2]
[360697526,1746935440687,-400.0,0.00019479,2]
[360697527,1746935440696,-400.0,0.00019479,2]
[360697528,1746935440706,-400.0,0.00019479,2]
[360697529,1746935440715,-400.0,0.00019479,2]
[360697530,1746935440724,-500.95,0.00019479,2]
[360697531,1746935440734,-400.0,0.00019479,2]
[360697532,1746935440743,-400.0,0.00019479,2]
[360697533,1746935440752,-400.0,0.00019479,2]
[360697534,1746935440761,-400.0,0.00019479,2]
[360697535,1746935440770,-485.8564013,0.00019479,2]
[360697536,1746935440779,-400.0,0.00019479,2]
[360697537,1746935440789,-400.0,0.00019479,2]
[360697538,1746935440798,-400.0,0.00019479,2]
[360697539,1746935440808,-400.0,0.00019479,2]
[360697540,1746935440817,-400.0,0.00019479,2]
[360697541,1746935440827,-400.0,0.00019479,2]
[360697542,1746935440836,-400.0,0.00019479,2]
[360697543,1746935440847,-410.47828682,0.00019479,2]
[360697544,1746935440857,-400.0,0.00019479,2]
[360697545,1746935440866,-400.0,0.00019479,2]
[360697546,1746935440875,-400.0,0.00019479,2]
[360697547,1746935440884,-400.0,0.00019479,2]
[360697548,1746935440894,-400.0,0.00019479,2]
[360697549,1746935440903,-400.0,0.00019479,2]
[360697550,1746935440912,-400.0,0.00019479,2]
[360697551,1746935440921,-400.0,0.00019479,2]
[360697552,1746935440931,-400.0,0.00019479,2]
[360697553,1746935440941,-1116.38,0.00019479,2]
[360697554,1746935440950,-400.0,0.00019479,2]
[360697555,1746935440960,-400.0,0.00019479,2]
[360697556,1746935440969,-400.0,0.00019479,2]
[360697557,1746935440980,-400.0,0.00019479,2]
[360697558,1746935440990,-412.35226106,0.00019479,2]
[360697559,1746935440999,-400.0,0.00019479,2]
[360697560,1746935441011,-716.4,0.00019479,2]
[360697561,1746935441022,-400.0,0.00019479,2]
[360697562,1746935441032,-400.0,0.00019479,2]
[360697563,1746935441042,-400.0,0.00019479,2]
[360697564,1746935441051,-400.0,0.00019479,2]